[Event "Titled Tuesday Blitz November 14 Late 2023"]
[White "Rustemov, Alexander"]
[Black "angelgab3"]
[WhiteFideId "4119002"]
[WhiteElo "2864"]
[BlackElo "2553"]
[Result "1-0"]
[Round "2"]
[TimeControl "180+1"]
[Date "2023.11.14"]
[WhiteClock "0:00:38"]
[BlackClock "0:00:09"]
[Board "32"]

1. d4 {[%clk 0:03:00]}  Nf6 {[%clk 0:02:55]} 2. c4 {[%clk 0:03:00]}  e6 {[%clk 0:02:55]} 3. Nf3 {[%clk 0:03:00]}  d5 {[%clk 0:02:54]} 4. Bg5 {[%clk 0:02:59]}  dxc4 {[%clk 0:02:54]} 5. Qa4+ {[%clk 0:02:59]}  Nbd7 {[%clk 0:02:52]} 6. Qxc4 {[%clk 0:02:58]}  a6 {[%clk 0:02:52]} 7. g3 {[%clk 0:02:51]}  b5 {[%clk 0:02:52]} 8. Qd3 {[%clk 0:02:49]}  Bb7 {[%clk 0:02:52]} 9. Bg2 {[%clk 0:02:49]}  c5 {[%clk 0:02:50]} 10. O-O {[%clk 0:02:49]}  Be7 {[%clk 0:02:48]} 11. Rd1 {[%clk 0:02:42]}  O-O {[%clk 0:02:46]} 12. Nc3 {[%clk 0:02:36]}  Rc8 {[%clk 0:02:36]} 13. dxc5 {[%clk 0:02:29]}  Nxc5 {[%clk 0:02:37]} 14. Qxd8 {[%clk 0:02:27]}  Rfxd8 {[%clk 0:02:37]} 15. Ne5 {[%clk 0:02:24]}  Bxg2 {[%clk 0:02:25]} 16. Kxg2 {[%clk 0:02:24]}  h6 {[%clk 0:02:26]} 17. Rxd8+ {[%clk 0:02:17]}  Bxd8 {[%clk 0:02:27]} 18. Be3 {[%clk 0:02:09]}  b4 {[%clk 0:02:12]} 19. Nd1 {[%clk 0:01:53]}  Nd5 {[%clk 0:02:11]} 20. Rc1 {[%clk 0:01:42]}  Be7 {[%clk 0:01:48]} 21. Nd3 {[%clk 0:01:40]}  Nxe3+ {[%clk 0:01:31]} 22. Nxe3 {[%clk 0:01:40]}  a5 {[%clk 0:01:31]} 23. Nxc5 {[%clk 0:01:27]}  Rxc5 {[%clk 0:01:32]} 24. Rxc5 {[%clk 0:01:27]}  Bxc5 {[%clk 0:01:33]} 25. Nc4 {[%clk 0:01:27]}  a4 {[%clk 0:01:32]} 26. b3 {[%clk 0:01:26]}  axb3 {[%clk 0:01:33]} 27. axb3 {[%clk 0:01:26]}  g5 {[%clk 0:01:24]} 28. Nb2 {[%clk 0:01:22]}  f5 {[%clk 0:01:21]} 29. Nd3 {[%clk 0:01:21]}  Bd6 {[%clk 0:01:22]} 30. f3 {[%clk 0:01:18]}  Kf7 {[%clk 0:01:16]} 31. g4 {[%clk 0:01:18]}  Kg6 {[%clk 0:01:12]} 32. h3 {[%clk 0:01:18]}  h5 {[%clk 0:01:12]} 33. Kf2 {[%clk 0:01:18]}  hxg4 {[%clk 0:00:52]} 34. hxg4 {[%clk 0:01:18]}  Kf6 {[%clk 0:00:49]} 35. Ke3 {[%clk 0:01:18]}  e5 {[%clk 0:00:49]} 36. Ne1 {[%clk 0:00:47]}  e4 {[%clk 0:00:47]} 37. Kd4 {[%clk 0:00:45]}  Be5+ {[%clk 0:00:35]} 38. Kd5 {[%clk 0:00:44]}  Bc3 {[%clk 0:00:35]} 39. Nc2 {[%clk 0:00:42]}  exf3 {[%clk 0:00:18]} 40. exf3 {[%clk 0:00:43]}  Bd2 {[%clk 0:00:18]} 41. Nd4 {[%clk 0:00:42]}  fxg4 {[%clk 0:00:17]} 42. fxg4 {[%clk 0:00:43]}  Bc3 {[%clk 0:00:18]} 43. Ne6 {[%clk 0:00:38]}  Bd2 {[%clk 0:00:16]} 44. Nc5 {[%clk 0:00:38]}  Be1 {[%clk 0:00:14]} 45. Ne4+ {[%clk 0:00:39]}  Kg6 {[%clk 0:00:13]} 46. Ke6 {[%clk 0:00:39]}  Bc3 {[%clk 0:00:12]} 47. Nd6 {[%clk 0:00:38]}  Bd2 {[%clk 0:00:11]} 48. Nc4 {[%clk 0:00:39]}  Be1 {[%clk 0:00:11]} 49. Ne5+ {[%clk 0:00:39]}  Kh6 {[%clk 0:00:10]} 50. Kf5 {[%clk 0:00:39]}  Bd2 {[%clk 0:00:11]} 51. Nf7+ {[%clk 0:00:39]}  Kg7 {[%clk 0:00:11]} 52. Nxg5 {[%clk 0:00:40]}  Kf8 {[%clk 0:00:11]} 53. Ne4 {[%clk 0:00:39]}  Ke7 {[%clk 0:00:09]} 54. Nxd2 {[%clk 0:00:38]} 1-0


[Site "https://www.chess.com"]

[Event "Titled Tuesday Blitz November 14 Late 2023"]
[White "Ocelak, Jakub"]
[Black "Szpar, Milosz"]
[WhiteFideId "23707933"]
[BlackFideId "1184989"]
[WhiteElo "2552"]
[BlackElo "2859"]
[Result "0-1"]
[Round "2"]
[TimeControl "180+1"]
[Date "2023.11.14"]
[WhiteClock "0:00:17"]
[BlackClock "0:00:29"]
[Board "33"]

1. d4 {[%clk 0:03:00]}  d5 {[%clk 0:02:59]} 2. Nf3 {[%clk 0:02:58]}  Nf6 {[%clk 0:02:59]} 3. Bf4 {[%clk 0:02:57]}  e6 {[%clk 0:02:58]} 4. e3 {[%clk 0:02:57]}  c5 {[%clk 0:02:56]} 5. Nbd2 {[%clk 0:02:55]}  Nc6 {[%clk 0:02:56]} 6. c3 {[%clk 0:02:53]}  cxd4 {[%clk 0:02:56]} 7. exd4 {[%clk 0:02:52]}  Nh5 {[%clk 0:02:57]} 8. Be3 {[%clk 0:02:52]}  Bd6 {[%clk 0:02:56]} 9. Ne5 {[%clk 0:02:49]}  Nf6 {[%clk 0:02:55]} 10. f4 {[%clk 0:02:44]}  Qb6 {[%clk 0:02:50]} 11. Qb3 {[%clk 0:02:42]}  Ng8 {[%clk 0:02:36]} 12. Be2 {[%clk 0:02:28]}  Nh6 {[%clk 0:02:29]} 13. O-O {[%clk 0:02:24]}  Nf5 {[%clk 0:02:23]} 14. Bf2 {[%clk 0:02:19]}  f6 {[%clk 0:02:21]} 15. Nd3 {[%clk 0:02:15]}  h5 {[%clk 0:02:20]} 16. Rfe1 {[%clk 0:02:11]}  Bd7 {[%clk 0:02:13]} 17. Bf3 {[%clk 0:02:02]}  O-O-O {[%clk 0:01:57]} 18. Qxb6 {[%clk 0:01:53]}  axb6 {[%clk 0:01:57]} 19. Nf1 {[%clk 0:01:51]}  g5 {[%clk 0:01:55]} 20. fxg5 {[%clk 0:01:47]}  fxg5 {[%clk 0:01:55]} 21. Ne3 {[%clk 0:01:46]}  Nce7 {[%clk 0:01:47]} 22. Ne5 {[%clk 0:01:43]}  Bxe5 {[%clk 0:01:34]} 23. dxe5 {[%clk 0:01:41]}  Kc7 {[%clk 0:01:35]} 24. Rad1 {[%clk 0:01:30]}  g4 {[%clk 0:01:33]} 25. Be2 {[%clk 0:01:25]}  Rdg8 {[%clk 0:01:19]} 26. Nxf5 {[%clk 0:01:21]}  Nxf5 {[%clk 0:01:19]} 27. Bd3 {[%clk 0:01:18]}  g3 {[%clk 0:01:16]} 28. hxg3 {[%clk 0:01:16]}  Nxg3 {[%clk 0:01:16]} 29. Re3 {[%clk 0:01:07]}  h4 {[%clk 0:01:14]} 30. Bxg3 {[%clk 0:00:50]}  hxg3 {[%clk 0:01:14]} 31. Rf1 {[%clk 0:00:50]}  Rg5 {[%clk 0:00:45]} 32. Rff3 {[%clk 0:00:48]}  Rhg8 {[%clk 0:00:41]} 33. c4 {[%clk 0:00:40]}  Bc6 {[%clk 0:00:30]} 34. Rf7+ {[%clk 0:00:38]}  Kb8 {[%clk 0:00:31]} 35. Rf6 {[%clk 0:00:30]}  d4 {[%clk 0:00:29]} 36. Re2 {[%clk 0:00:21]}  Rh8 {[%clk 0:00:30]} 37. Kf1 {[%clk 0:00:17]}  Rh1# {[%clk 0:00:29]} 0-1


[Site "https://www.chess.com"]

[Event "Titled Tuesday Blitz November 14 Late 2023"]
[White "Hafiz, Arif Abdul"]
[Black "Novik, Maxim"]
[WhiteFideId "7104227"]
[BlackFideId "4102924"]
[WhiteElo "2811"]
[BlackElo "2545"]
[Result "1-0"]
[Round "2"]
[TimeControl "180+1"]
[Date "2023.11.14"]
[WhiteClock "0:00:10"]
[BlackClock "0:00:03"]
[Board "40"]

1. e4 {[%clk 0:03:00]}  c6 {[%clk 0:02:59]} 2. d4 {[%clk 0:03:01]}  d5 {[%clk 0:02:59]} 3. e5 {[%clk 0:03:01]}  Bf5 {[%clk 0:02:59]} 4. h4 {[%clk 0:03:02]}  Qb6 {[%clk 0:03:00]} 5. g4 {[%clk 0:03:00]}  Bd7 {[%clk 0:02:59]} 6. Nc3 {[%clk 0:03:00]}  h5 {[%clk 0:02:58]} 7. gxh5 {[%clk 0:03:00]}  Bf5 {[%clk 0:02:58]} 8. Nce2 {[%clk 0:02:59]}  e6 {[%clk 0:02:57]} 9. Ng3 {[%clk 0:02:57]}  Ne7 {[%clk 0:02:52]} 10. c3 {[%clk 0:02:44]}  c5 {[%clk 0:02:51]} 11. dxc5 {[%clk 0:02:35]}  Qxc5 {[%clk 0:02:50]} 12. Be3 {[%clk 0:02:35]}  Qc7 {[%clk 0:02:49]} 13. f4 {[%clk 0:02:28]}  Nbc6 {[%clk 0:02:49]} 14. Bd3 {[%clk 0:02:17]}  Bxd3 {[%clk 0:02:44]} 15. Qxd3 {[%clk 0:02:18]}  O-O-O {[%clk 0:02:39]} 16. Nf3 {[%clk 0:02:18]}  Kb8 {[%clk 0:02:37]} 17. a4 {[%clk 0:02:16]}  g6 {[%clk 0:02:21]} 18. hxg6 {[%clk 0:02:05]}  fxg6 {[%clk 0:02:21]} 19. Ng5 {[%clk 0:02:03]}  Qd7 {[%clk 0:01:20]} 20. Nf7 {[%clk 0:02:02]}  Bg7 {[%clk 0:01:18]} 21. Nxd8 {[%clk 0:01:59]}  Rxd8 {[%clk 0:01:13]} 22. Bc5 {[%clk 0:01:48]}  Bh6 {[%clk 0:01:04]} 23. Rf1 {[%clk 0:01:34]}  Nf5 {[%clk 0:00:33]} 24. Nxf5 {[%clk 0:01:33]}  gxf5 {[%clk 0:00:33]} 25. Bd6+ {[%clk 0:01:30]}  Ka8 {[%clk 0:00:33]} 26. O-O-O {[%clk 0:01:29]}  a6 {[%clk 0:00:31]} 27. Kb1 {[%clk 0:01:27]}  Na5 {[%clk 0:00:30]} 28. Bb4 {[%clk 0:00:54]}  Nc4 {[%clk 0:00:19]} 29. b3 {[%clk 0:00:54]}  Nb6 {[%clk 0:00:18]} 30. Qd4 {[%clk 0:00:51]}  Qc6 {[%clk 0:00:16]} 31. Qc5 {[%clk 0:00:50]}  Qxc5 {[%clk 0:00:15]} 32. Bxc5 {[%clk 0:00:51]}  Nd7 {[%clk 0:00:16]} 33. Be3 {[%clk 0:00:49]}  Nxe5 {[%clk 0:00:14]} 34. fxe5 {[%clk 0:00:48]}  Bxe3 {[%clk 0:00:14]} 35. Rf3 {[%clk 0:00:47]}  f4 {[%clk 0:00:13]} 36. h5 {[%clk 0:00:47]}  Rh8 {[%clk 0:00:13]} 37. Rh1 {[%clk 0:00:47]}  Kb8 {[%clk 0:00:14]} 38. Kc2 {[%clk 0:00:47]}  Kc8 {[%clk 0:00:14]} 39. Kd3 {[%clk 0:00:48]}  Kd7 {[%clk 0:00:14]} 40. h6 {[%clk 0:00:48]}  Ke7 {[%clk 0:00:14]} 41. h7 {[%clk 0:00:48]}  Kf7 {[%clk 0:00:15]} 42. Rfh3 {[%clk 0:00:40]}  Kg6 {[%clk 0:00:15]} 43. Rh5 {[%clk 0:00:28]}  Kg7 {[%clk 0:00:11]} 44. Ke2 {[%clk 0:00:23]}  Kg6 {[%clk 0:00:11]} 45. Kf3 {[%clk 0:00:23]}  Bd2 {[%clk 0:00:11]} 46. c4 {[%clk 0:00:23]}  dxc4 {[%clk 0:00:11]} 47. bxc4 {[%clk 0:00:24]}  Be3 {[%clk 0:00:12]} 48. Rh6+ {[%clk 0:00:22]}  Kg7 {[%clk 0:00:12]} 49. Rxe6 {[%clk 0:00:22]}  Kf7 {[%clk 0:00:11]} 50. Rf6+ {[%clk 0:00:21]}  Kg7 {[%clk 0:00:11]} 51. Rd6 {[%clk 0:00:17]}  Bc5 {[%clk 0:00:10]} 52. Rd7+ {[%clk 0:00:15]}  Kg6 {[%clk 0:00:10]} 53. Rxb7 {[%clk 0:00:15]}  Kf5 {[%clk 0:00:08]} 54. Rg7 {[%clk 0:00:10]}  Rb8 {[%clk 0:00:03]} 55. Rh5+ {[%clk 0:00:10]}  Ke6 {[%clk 0:00:02]} 56. h8=Q {[%clk 0:00:11]}  Rb3+ {[%clk 0:00:02]} 57. Ke2 {[%clk 0:00:11]}  Be3 {[%clk 0:00:03]} 58. Qe8# {[%clk 0:00:10]} 1-0


[Site "https://www.chess.com"]

[Event "Titled Tuesday Blitz November 14 Late 2023"]
[White "Ismayil, Malak"]
[Black "Ghasi, Ameet K"]
[WhiteFideId "13412604"]
[BlackFideId "409200"]
[WhiteElo "2544"]
[BlackElo "2809"]
[Result "0-1"]
[Round "2"]
[TimeControl "180+1"]
[Date "2023.11.14"]
[WhiteClock "0:00:06"]
[BlackClock "0:01:43"]
[Board "41"]

1. e4 {[%clk 0:02:59]}  g6 {[%clk 0:03:00]} 2. d4 {[%clk 0:02:58]}  Bg7 {[%clk 0:03:01]} 3. Be3 {[%clk 0:02:56]}  d6 {[%clk 0:03:01]} 4. Nc3 {[%clk 0:02:52]}  a6 {[%clk 0:03:02]} 5. Qd2 {[%clk 0:02:51]}  b5 {[%clk 0:03:02]} 6. f3 {[%clk 0:02:49]}  Bb7 {[%clk 0:03:02]} 7. h4 {[%clk 0:02:50]}  h6 {[%clk 0:03:02]} 8. h5 {[%clk 0:02:47]}  g5 {[%clk 0:03:02]} 9. Nge2 {[%clk 0:02:38]}  e6 {[%clk 0:03:02]} 10. f4 {[%clk 0:02:35]}  gxf4 {[%clk 0:03:01]} 11. Nxf4 {[%clk 0:02:36]}  Nf6 {[%clk 0:02:56]} 12. Bd3 {[%clk 0:02:30]}  Nbd7 {[%clk 0:02:39]} 13. a4 {[%clk 0:01:34]}  b4 {[%clk 0:02:38]} 14. Nce2 {[%clk 0:01:34]}  c5 {[%clk 0:02:29]} 15. dxc5 {[%clk 0:01:16]}  dxc5 {[%clk 0:02:30]} 16. Ng3 {[%clk 0:01:14]}  Ng4 {[%clk 0:02:13]} 17. Rb1 {[%clk 0:00:48]}  Nxe3 {[%clk 0:01:44]} 18. Qxe3 {[%clk 0:00:48]}  Bd4 {[%clk 0:01:45]} 19. Qe2 {[%clk 0:00:06]}  Qg5 {[%clk 0:01:43]} 0-1


[Site "https://www.chess.com"]

[Event "Titled Tuesday Blitz November 14 Late 2023"]
[White "dodoucb"]
[Black "Troff, Kayden"]
[BlackFideId "2047896"]
[WhiteElo "2542"]
[BlackElo "2795"]
[Result "0-1"]
[Round "2"]
[TimeControl "180+1"]
[Date "2023.11.14"]
[WhiteClock "0:00:00"]
[BlackClock "0:00:50"]
[Board "43"]

1. e4 {[%clk 0:02:58]}  c5 {[%clk 0:02:59]} 2. Nf3 {[%clk 0:02:54]}  g6 {[%clk 0:02:59]} 3. d4 {[%clk 0:02:53]}  cxd4 {[%clk 0:03:00]} 4. Nxd4 {[%clk 0:02:53]}  Bg7 {[%clk 0:03:00]} 5. Nc3 {[%clk 0:02:50]}  Nc6 {[%clk 0:03:00]} 6. Be3 {[%clk 0:02:49]}  Nf6 {[%clk 0:03:00]} 7. Be2 {[%clk 0:02:46]}  O-O {[%clk 0:02:58]} 8. O-O {[%clk 0:02:43]}  d5 {[%clk 0:02:58]} 9. exd5 {[%clk 0:02:25]}  Nxd5 {[%clk 0:02:59]} 10. Nxd5 {[%clk 0:02:24]}  Qxd5 {[%clk 0:03:00]} 11. Nxc6 {[%clk 0:02:24]}  bxc6 {[%clk 0:03:01]} 12. c3 {[%clk 0:02:19]}  Rb8 {[%clk 0:02:58]} 13. Qc1 {[%clk 0:02:06]}  a5 {[%clk 0:02:54]} 14. Rd1 {[%clk 0:02:04]}  Qe6 {[%clk 0:02:45]} 15. Qc2 {[%clk 0:01:50]}  a4 {[%clk 0:02:22]} 16. Bc5 {[%clk 0:01:31]}  Qf5 {[%clk 0:02:17]} 17. Qxf5 {[%clk 0:01:06]}  Bxf5 {[%clk 0:02:18]} 18. Rd2 {[%clk 0:01:02]}  Bh6 {[%clk 0:01:59]} 19. Be3 {[%clk 0:00:53]}  Bxe3 {[%clk 0:01:58]} 20. fxe3 {[%clk 0:00:53]}  Be6 {[%clk 0:01:56]} 21. Bf3 {[%clk 0:00:51]}  c5 {[%clk 0:01:55]} 22. Bc6 {[%clk 0:00:38]}  a3 {[%clk 0:01:44]} 23. bxa3 {[%clk 0:00:34]}  Rb6 {[%clk 0:01:45]} 24. Bd7 {[%clk 0:00:20]}  Ra8 {[%clk 0:01:37]} 25. a4 {[%clk 0:00:15]}  Bxd7 {[%clk 0:01:33]} 26. Rxd7 {[%clk 0:00:15]}  Re6 {[%clk 0:01:23]} 27. Rc7 {[%clk 0:00:15]}  Rxa4 {[%clk 0:01:22]} 28. Rxc5 {[%clk 0:00:13]}  Rxe3 {[%clk 0:01:22]} 29. Kf2 {[%clk 0:00:09]}  Re6 {[%clk 0:01:20]} 30. g3 {[%clk 0:00:06]}  Rb6 {[%clk 0:01:19]} 31. Rc1 {[%clk 0:00:04]}  Rxa2+ {[%clk 0:01:18]} 32. Kf3 {[%clk 0:00:03]}  Rf6+ {[%clk 0:01:18]} 33. Ke3 {[%clk 0:00:02]}  Rxh2 {[%clk 0:01:18]} 34. Re5 {[%clk 0:00:03]}  Rg2 {[%clk 0:01:18]} 35. Rxe7 {[%clk 0:00:02]}  Rxg3+ {[%clk 0:01:18]} 36. Kd4 {[%clk 0:00:03]}  Rg4+ {[%clk 0:01:18]} 37. Kc5 {[%clk 0:00:03]}  Rf5+ {[%clk 0:01:18]} 38. Kb6 {[%clk 0:00:03]}  Rc4 {[%clk 0:01:19]} 39. Rc7 {[%clk 0:00:02]}  Rf6+ {[%clk 0:01:01]} 40. Kb7 {[%clk 0:00:02]}  Ra4 {[%clk 0:01:01]} 41. c4 {[%clk 0:00:02]}  Rb4+ {[%clk 0:01:00]} 42. Kc8 {[%clk 0:00:02]}  h5 {[%clk 0:00:58]} 43. c5 {[%clk 0:00:02]}  h4 {[%clk 0:00:59]} 44. c6 {[%clk 0:00:03]}  h3 {[%clk 0:00:59]} 45. Rd7 {[%clk 0:00:04]}  h2 {[%clk 0:00:51]} 46. Rd2 {[%clk 0:00:00]}  Rxc6+ {[%clk 0:00:50]} 0-1


[Site "https://www.chess.com"]

[Event "Titled Tuesday Blitz November 14 Late 2023"]
[White "Maksimovic, Bojan"]
[Black "topce"]
[WhiteFideId "14408120"]
[WhiteElo "2790"]
[BlackElo "2534"]
[Result "1-0"]
[Round "2"]
[TimeControl "180+1"]
[Date "2023.11.14"]
[WhiteClock "0:01:58"]
[BlackClock "0:02:04"]
[Board "45"]

1. Nf3 {[%clk 0:03:00]}  c5 {[%clk 0:02:57]} 2. g3 {[%clk 0:03:01]}  Nc6 {[%clk 0:02:56]} 3. Bg2 {[%clk 0:03:02]}  g6 {[%clk 0:02:57]} 4. O-O {[%clk 0:03:02]}  Bg7 {[%clk 0:02:58]} 5. c3 {[%clk 0:03:03]}  d6 {[%clk 0:02:58]} 6. d4 {[%clk 0:03:04]}  cxd4 {[%clk 0:02:59]} 7. cxd4 {[%clk 0:03:05]}  Nf6 {[%clk 0:02:59]} 8. Nc3 {[%clk 0:03:05]}  Bf5 {[%clk 0:02:59]} 9. d5 {[%clk 0:03:02]}  Ne5 {[%clk 0:02:55]} 10. Nxe5 {[%clk 0:02:55]}  dxe5 {[%clk 0:02:56]} 11. e4 {[%clk 0:02:55]}  Bg4 {[%clk 0:02:55]} 12. Qb3 {[%clk 0:02:54]}  b6 {[%clk 0:02:50]} 13. Be3 {[%clk 0:02:49]}  O-O {[%clk 0:02:49]} 14. Rac1 {[%clk 0:02:50]}  Qd7 {[%clk 0:02:47]} 15. f3 {[%clk 0:02:41]}  Bh3 {[%clk 0:02:47]} 16. Qb5 {[%clk 0:02:41]}  Rfc8 {[%clk 0:02:38]} 17. Qxd7 {[%clk 0:02:29]}  Bxd7 {[%clk 0:02:39]} 18. Rc2 {[%clk 0:02:26]}  Ne8 {[%clk 0:02:38]} 19. Rfc1 {[%clk 0:02:25]}  Nd6 {[%clk 0:02:39]} 20. Bf1 {[%clk 0:02:26]}  Rc7 {[%clk 0:02:27]} 21. Ba6 {[%clk 0:02:22]}  f5 {[%clk 0:02:25]} 22. b3 {[%clk 0:02:15]}  Bc8 {[%clk 0:02:22]} 23. Bd3 {[%clk 0:02:02]}  Bd7 {[%clk 0:02:17]} 24. Nd1 {[%clk 0:01:59]}  Rac8 {[%clk 0:02:14]} 25. Rxc7 {[%clk 0:01:58]}  Rxc7 {[%clk 0:02:04]} 26. Rxc7 {[%clk 0:01:58]} 1-0


[Site "https://www.chess.com"]

[Event "Titled Tuesday Blitz November 14 Late 2023"]
[White "Womacka, Mathias"]
[Black "Rastbod, Ali"]
[WhiteFideId "4611390"]
[BlackFideId "12567477"]
[WhiteElo "2532"]
[BlackElo "2774"]
[Result "0-1"]
[Round "2"]
[TimeControl "180+1"]
[Date "2023.11.14"]
[WhiteClock "0:00:00"]
[BlackClock "0:00:26"]
[Board "47"]

1. e4 {[%clk 0:03:00]}  Nc6 {[%clk 0:02:47]} 2. Nf3 {[%clk 0:03:00]}  g6 {[%clk 0:02:45]} 3. d4 {[%clk 0:02:59]}  Bg7 {[%clk 0:02:45]} 4. d5 {[%clk 0:02:57]}  Nb8 {[%clk 0:02:45]} 5. Nc3 {[%clk 0:02:44]}  d6 {[%clk 0:02:45]} 6. h3 {[%clk 0:02:42]}  Nf6 {[%clk 0:02:45]} 7. Bd3 {[%clk 0:02:39]}  O-O {[%clk 0:02:46]} 8. O-O {[%clk 0:02:38]}  c6 {[%clk 0:02:46]} 9. Bg5 {[%clk 0:02:31]}  a6 {[%clk 0:02:44]} 10. a4 {[%clk 0:02:26]}  a5 {[%clk 0:02:44]} 11. Qd2 {[%clk 0:02:22]}  Re8 {[%clk 0:02:42]} 12. Rfe1 {[%clk 0:02:16]}  Na6 {[%clk 0:02:42]} 13. dxc6 {[%clk 0:02:02]}  bxc6 {[%clk 0:02:41]} 14. e5 {[%clk 0:02:02]}  dxe5 {[%clk 0:02:38]} 15. Nxe5 {[%clk 0:02:03]}  Qc7 {[%clk 0:02:10]} 16. Bc4 {[%clk 0:02:00]}  e6 {[%clk 0:02:10]} 17. Nxc6 {[%clk 0:01:39]}  Bb7 {[%clk 0:01:34]} 18. Ne5 {[%clk 0:01:36]}  Nb4 {[%clk 0:01:31]} 19. Nb5 {[%clk 0:01:28]}  Qb6 {[%clk 0:01:21]} 20. Be3 {[%clk 0:01:23]}  Qd8 {[%clk 0:01:21]} 21. Nd6 {[%clk 0:01:03]}  Re7 {[%clk 0:01:21]} 22. Ndxf7 {[%clk 0:01:01]}  Qxd2 {[%clk 0:01:12]} 23. Bxd2 {[%clk 0:01:02]}  Nxc2 {[%clk 0:01:10]} 24. Ng5 {[%clk 0:00:55]}  Nd5 {[%clk 0:01:10]} 25. Nef3 {[%clk 0:00:35]}  Nxa1 {[%clk 0:01:04]} 26. Rxa1 {[%clk 0:00:36]}  h6 {[%clk 0:01:04]} 27. Ne4 {[%clk 0:00:35]}  Ba6 {[%clk 0:01:03]} 28. Rc1 {[%clk 0:00:16]}  Bxb2 {[%clk 0:00:59]} 29. Rc2 {[%clk 0:00:17]}  Bxc4 {[%clk 0:00:58]} 30. Rxc4 {[%clk 0:00:14]}  Bg7 {[%clk 0:00:57]} 31. Rc6 {[%clk 0:00:14]}  Nb4 {[%clk 0:00:56]} 32. Rb6 {[%clk 0:00:12]}  Nd5 {[%clk 0:00:52]} 33. Rc6 {[%clk 0:00:12]}  Kh7 {[%clk 0:00:48]} 34. Nc5 {[%clk 0:00:10]}  Nb4 {[%clk 0:00:45]} 35. Rxe6 {[%clk 0:00:08]}  Rxe6 {[%clk 0:00:46]} 36. Nxe6 {[%clk 0:00:06]}  Rc8 {[%clk 0:00:45]} 37. Nxg7 {[%clk 0:00:06]}  Kxg7 {[%clk 0:00:45]} 38. Kf1 {[%clk 0:00:07]}  Rc2 {[%clk 0:00:44]} 39. Ke2 {[%clk 0:00:06]}  Ra2 {[%clk 0:00:45]} 40. Ne5 {[%clk 0:00:05]}  Rxa4 {[%clk 0:00:41]} 41. Nc4 {[%clk 0:00:05]}  Nc6 {[%clk 0:00:39]} 42. Kd3 {[%clk 0:00:05]}  Ra2 {[%clk 0:00:33]} 43. g4 {[%clk 0:00:03]}  Nb4+ {[%clk 0:00:30]} 44. Kc3 {[%clk 0:00:00]}  Ra1 {[%clk 0:00:26]} 0-1


[Site "https://www.chess.com"]

[Event "Titled Tuesday Blitz November 14 Late 2023"]
[White "Slade, Theodore"]
[Black "Nazari, Arad"]
[WhiteFideId "426547"]
[BlackFideId "12577324"]
[WhiteElo "2526"]
[BlackElo "2759"]
[Result "0-1"]
[Round "2"]
[TimeControl "180+1"]
[Date "2023.11.14"]
[WhiteClock "0:00:43"]
[BlackClock "0:01:32"]
[Board "50"]

1. d4 {[%clk 0:03:00]}  Nf6 {[%clk 0:02:59]} 2. c4 {[%clk 0:03:01]}  g6 {[%clk 0:02:59]} 3. Nc3 {[%clk 0:03:01]}  d5 {[%clk 0:02:59]} 4. cxd5 {[%clk 0:03:01]}  Nxd5 {[%clk 0:02:59]} 5. e4 {[%clk 0:03:02]}  Nxc3 {[%clk 0:03:00]} 6. bxc3 {[%clk 0:03:03]}  Bg7 {[%clk 0:03:01]} 7. Be3 {[%clk 0:03:04]}  O-O {[%clk 0:03:00]} 8. Nf3 {[%clk 0:03:00]}  c5 {[%clk 0:03:00]} 9. Rc1 {[%clk 0:03:00]}  Qa5 {[%clk 0:03:00]} 10. Qd2 {[%clk 0:03:00]}  Rd8 {[%clk 0:02:59]} 11. d5 {[%clk 0:02:54]}  e6 {[%clk 0:02:53]} 12. c4 {[%clk 0:02:53]}  Qxd2+ {[%clk 0:02:52]} 13. Nxd2 {[%clk 0:02:48]}  Na6 {[%clk 0:02:32]} 14. Be2 {[%clk 0:02:44]}  Nb4 {[%clk 0:02:27]} 15. a3 {[%clk 0:02:36]}  Na2 {[%clk 0:02:27]} 16. Rc2 {[%clk 0:02:32]}  Nc3 {[%clk 0:02:27]} 17. Bxc5 {[%clk 0:02:27]}  b6 {[%clk 0:02:25]} 18. Be7 {[%clk 0:02:18]}  Rd7 {[%clk 0:02:23]} 19. Bb4 {[%clk 0:02:19]}  Nxe2 {[%clk 0:01:56]} 20. Kxe2 {[%clk 0:02:18]}  Ba6 {[%clk 0:01:57]} 21. Rhc1 {[%clk 0:02:03]}  exd5 {[%clk 0:01:56]} 22. exd5 {[%clk 0:02:02]}  Rxd5 {[%clk 0:01:57]} 23. Bc3 {[%clk 0:01:32]}  Re8+ {[%clk 0:01:55]} 24. Kf3 {[%clk 0:01:16]}  Rd3+ {[%clk 0:01:54]} 25. Kg4 {[%clk 0:01:03]}  Bxc3 {[%clk 0:01:36]} 26. Rxc3 {[%clk 0:00:50]}  Rxd2 {[%clk 0:01:35]} 27. Kg3 {[%clk 0:00:43]}  Ree2 {[%clk 0:01:32]} 0-1


[Site "https://www.chess.com"]